Cogmind - Beta 15 @@@ ROGUE MODE // 2025.07.21 @ 18:12:37 Player: Waste Result: Destroyed by Piercing Trap Performance ------------- Evolutions (0) 0 Regions Visited (2) 400 Robots Destroyed (10) 50 Value Destroyed (340) 340 Prototype IDs (0) 0 Alien Tech Used (0) 0 Bonus (0) 0 TOTAL SCORE: 790 Bonus ------- None Cogmind --------- Core Integrity 0/250 Matter 300/300 Energy 121/125 System Corruption 0% Temperature Cool (2) Movement Treading (160) Location -10/Subcaves Parts ------- > --- POWER (1) -------- Light Ion Engine > --- PROPULSION (2) --- Light Treads Light Treads > --- UTILITY (2) ------ Small Storage Unit > --- WEAPON (2) ------- Assault Rifle Battle Cannon > --- INVENTORY (8) ---- Subdweller Power Source Subdweller Laser Subdweller Machine Gun Subdweller Machine Gun Makeshift Sword Peak State ------------ > --- POWER ------------ Ion Engine > --- PROPULSION ------- Aluminum Leg Aluminum Leg > --- UTILITY ---------- Small Storage Unit Light Armor Plating > --- WEAPON ----------- Medium Laser Subdweller Laser > --- INVENTORY -------- Light Ion Engine Light Treads Light Treads Light Armor Plating Assault Rifle Battle Cannon Makeshift Sword [Rating: 9] Favorites ----------- Power Ion Engine Engine Ion Engine Propulsion Aluminum Leg Treads Light Treads Leg Aluminum Leg Utility Small Storage Unit Storage Small Storage Unit Protection Light Armor Plating Weapon Assault Rifle Energy Gun Medium Laser Ballistic Gun Assault Rifle Ballistic Cannon Battle Cannon Build | -11 -10 -10 ------- Run | Yrd Mat Sub Slots Evolved . | . . . Power . | . . . Propulsion . | . . . Utility . | . . . Weapon . | . . . Parts Attached 10 | 1 1 8 Power 1 | . . 1 Engine 1 | . . 1 Core . | . . . Reactor . | . . . Propulsion 2 | . . 2 Treads 2 | . . 2 Leg . | . . . Wheel . | . . . Hover . | . . . Flight . | . . . Utility 3 | . 1 2 Device . | . . . Storage . | . . . Processor . | . . . Hackware . | . . . Protection 3 | . 1 2 Artifact . | . . . Weapon 4 | 1 . 3 Energy Gun 2 | 1 . 1 Energy Cannon . | . . . Ballistic Gun 1 | . . 1 Ballistic Cannon 1 | . . 1 Launcher . | . . . Special Weapon . | . . . Impact Weapon . | . . . Slashing Weapon . | . . . Piercing Weapon . | . . . Special Melee Weapon . | . . . Unidentified Prototypes . | . . . Parts Lost 7 | . . 7 Power 1 | . . 1 Propulsion 2 | . . 2 Utility 3 | . . 3 Weapon 1 | . . 1 Highest Loss Streak 4 | . . 4 To Critical Strikes 1 | . . 1 Average Backups 6 | 6 6 6 Power . | 1 1 . Propulsion 2 | 4 4 2 Utility . | . . . Weapon 2 | 1 1 2 Tool/Special . | . . . Unused Backups 6 | . . 6 Power 1 | . . 1 Propulsion . | . . . Utility . | . . . Weapon 5 | . . 5 Tool/Special . | . . . Average Slot Usage (%) 93 | . 89 93 Engine 13 | . 14 13 Treads 7 | . . 8 Leg 19 | . 28 18 Storage 14 | . 14 14 Protection 8 | . 4 8 Energy Gun 11 | . 14 11 Ballistic Gun 11 | . 14 10 Ballistic Cannon 5 | . . 6 Peak Build Rating 9 | 6 7 9 Average Rating 7 | 6 6 7 On Entrance 6 | 6 6 7 Naked Turns . | . . . Heaviest Build 19 | 14 17 19 Greatest Support 40 | 20 20 40 Greatest Overweight (x) . | . . . Average Overweight (x) . | . . . Largest Inventory Capacity 8 | 8 8 8 Average Capacity 8 | 8 8 8 Most Carried 8 | 6 8 8 Average Carried 6 | 6 6 6 Final Capacity 8 | 8 8 8 Final Carried 8 | 6 8 5 Class Distribution -------------------- 100% | Mutant Dominant Class ---------------- Mutant | -10/Materials Mutant | -10/Subcaves Resources | -11 -10 -10 ----------- Run | Yrd Mat Sub Matter Collected 474 | 168 . 306 Remotely . | . . . Salvage Created 324 | . . 324 Parts 13 | . . 13 Haulers Intercepted . | . . . Recyclers Shooed . | . . . Parts Field Recycled . | . . . Retrieved Matter . | . . . Parts Self-Destructed 4 | . . 4 Prevented . | . . . Kills | -11 -10 -10 ------- Run | Yrd Mat Sub Combat Hostiles Destroyed 10 | . . 10 Guns 6 | . . 6 Cannons 4 | . . 4 Classes Destroyed 2 | . . 2 Swarmer 2 | . . 2 Subdweller 8 | . . 8 Best Kill Streak 2 | . . 2 Combat Bots Only 2 | . . 2 Max Kills in Single Turn 1 | . . 1 Gunslinging . | . . . Exploded . | . . . Melee . | . . . Uniques/NPCs Destroyed . | . . . Combat | -11 -10 -10 -------- Run | Yrd Mat Sub Hostile Shots Fired 78 | . . 78 Missed 14 | . . 14 Hits 64 | . . 64 Projectile 64 | . . 64 Critical Strikes 2 | . . 2 Damage Taken 1159 | . . 1159 Core 265 | . . 265 Absorbed by Shields . | . . . Core Remaining (%) 100 | 100 . . Volleys Fired 44 | . . 44 Largest 2 | . . 2 Hottest 110 | . . 110 Shots Fired 87 | . . 87 Gun 66 | . . 66 Cannon 21 | . . 21 Launcher . | . . . Special . | . . . Kinetic 54 | . . 54 Thermal 33 | . . 33 Explosive . | . . . Electromagnetic . | . . . Robot Hit Streak 31 | . . 31 Robot Miss Streak 2 | . . 2 Penetration Max . | . . . Secondary Targets 1 | . . 1 Max Gunslinging Chain 1 | . . 1 Shots Hit Robots 65 | . . 65 Core Hits 19 | . . 19 Critical Kills . | . . . Critical Parts Destroyed . | . . . Critical Strikes 3 | . . 3 Blast 3 | . . 3 Melee Attacks . | . . . Impact . | . . . Slashing . | . . . Piercing . | . . . Sneak Attacks . | . . . Combat Hostiles . | . . . Follow-up Attacks . | . . . Damage Inflicted 1037 | . . 1037 Guns 684 | . . 684 Cannons 353 | . . 353 Explosions . | . . . Melee . | . . . Ramming . | . . . Kinetic 666 | . . 666 Thermal 371 | . . 371 Explosive . | . . . Electromagnetic . | . . . Impact . | . . . Slashing . | . . . Piercing . | . . . Highest Corruption . | . . . Average Corruption . | . . . Corruption Purged . | . . . Corruption Blocked . | . . . Overload Shots . | . . . Overflow Damage . | . . . Projectiles . | . . . Explosions . | . . . Melee . | . . . Knockbacks 5 | . . 5 Impact . | . . . Kinetic 5 | . . 5 Secondary . | . . . Self-Inflicted Damage . | . . . Shots . | . . . Rammed . | . . . Targets Rammed 1 | . 1 . Kicked 1 | . 1 . Crushed . | . . . Highest Temperature 13 | . . 13 Average Temperature 8 | . . 8 Received Heat Transfer 135 | . . 135 Siege Activations . | . . . Martial Activations . | . . . Shielding Activations . | . . . Robots Disrupted . | . . . Combat Hostiles . | . . . Robots Corrupted . | . . . Combat Hostiles . | . . . Parts Fried . | . . . Impact Corruptions . | . . . Robots Melted . | . . . Combat Hostiles . | . . . Parts Melted 1 | . . 1 Heat Transferred 792 | . . 792 Parts Sabotaged . | . . . Parts Stolen . | . . . Parts Stripped . | . . . Power Chain Reactions . | . . . Alert | -11 -10 -10 ------- Run | Yrd Mat Sub Maximum Alert Level . | . . . Low Security (%) 100 | 100 100 . Level 1 . | . . . Level 2 . | . . . Level 3 . | . . . Level 4 . | . . . Level 5 . | . . . High Security . | . . . Max Security . | . . . Peak Influence 6 | . 6 . Initial . | . . . Average . | . . . Influence Increases 76 | . 6 70 Destroy 0b10 Robot/C 40 | . . 40 Successful Hack 6 | . 6 . Lose Combat Pursuer 30 | . . 30 Influence Decreases 76 | . 6 70 Time Decay 76 | . 6 70 Squads Dispatched . | . . . Investigation . | . . . Extermination . | . . . Reinforcement . | . . . Assault . | . . . Garrison . | . . . Intercept . | . . . Searches Triggered . | . . . Construction Impeded . | . . . Haulers Reinforced . | . . . Active Scanning Responses . | . . . Cargo Convoy Interrupts . | . . . Stealth | -11 -10 -10 --------- Run | Yrd Mat Sub Distress Signals . | . . . Communications Jammed . | . . . Distress Signals . | . . . Times Spotted 10 | . . 10 Peak Tracking Total 2 | . . 2 Tactical Retreats 1 | . . 1 Traps | -11 -10 -10 ------- Run | Yrd Mat Sub Traps Triggered 1 | . . 1 Indirectly . | . . . Trap Hack Attempts . | . . . Triggered . | . . . Disarmed . | . . . Reprogrammed . | . . . Reused . | . . . Traps Extracted . | . . . Installed . | . . . Triggered . | . . . Machines | -11 -10 -10 ---------- Run | Yrd Mat Sub Machines Disabled . | . . . Max in Single Turn . | . . . Machines Repaired . | . . . Machines Dismantled . | . . . Machines Sabotaged . | . . . Overloaded Fab Kills . | . . . Hacking | -11 -10 -10 --------- Run | Yrd Mat Sub Machines Accessed 2 | . 1 1 Terminals 1 | . 1 . Fabricators . | . . . Repair Stations . | . . . Recycling Units . | . . . Scanalyzers . | . . . Garrison Access . | . . . Total Hacks 9 | . 8 1 Successful 3 | . 2 1 Failed 6 | . 6 . Catastrophic . | . . . Database Lockouts . | . . . Manual 8 | . 8 . Terminals 8 | . 8 . Fabricators . | . . . Repair Stations . | . . . Recycling Units . | . . . Scanalyzers . | . . . Garrison Access . | . . . Terminal Hacks 3 | . 2 1 Robot Analysis 2 | . 2 . Open Door 1 | . . 1 Fabricator Hacks . | . . . Repair Station Hacks . | . . . Recycling Unit Hacks . | . . . Scanalyzer . | . . . Garrison Access Hacks . | . . . Unauthorized Hacks . | . . . Terminals . | . . . Fabricators . | . . . Repair Stations . | . . . Recycling Units . | . . . Scanalyzers . | . . . Garrison Access . | . . . Data Cores Recovered . | . . . Used . | . . . Hacking Detections 1 | . 1 . Full Trace Events . | . . . Feedback Events . | . . . Feedback Blocked . | . . . Robot Schematics Acquired . | . . . Robots Built . | . . . Authchips . | . . . Time . | . . . Total Robot Build Rating . | . . . Part Schematics Acquired . | . . . Parts Built . | . . . Authchips . | . . . Time . | . . . Total Part Build Rating . | . . . Parts Repaired . | . . . Time . | . . . Parts Recycled . | . . . Recycled Matter . | . . . Retrieved Matter . | . . . Retrieved Components . | . . . Parts Scanalyzed . | . . . Part Schematics Acquired . | . . . Parts Damaged . | . . . Bothacking | -11 -10 -10 ------------ Run | Yrd Mat Sub Used RIF Installer . | . . . Robots Hacked . | . . . Non-combat . | . . . Combat . | . . . Robot Hacks Applied . | . . . Relay Couplers Released . | . . . Fabnet Peak Effective % . | . . . Robots Rewired . | . . . Allies Hacked . | . . . Hacks Repelled . | . . . Allies | -11 -10 -10 -------- Run | Yrd Mat Sub Total Allies . | . . . Largest Group . | . . . Highest-Rated Group . | . . . Highest-Rated Ally . | . . . Total Orders . | . . . Ally Attacks . | . . . Total Damage . | . . . Kills . | . . . Allies Corrupted . | . . . Allies Melted . | . . . Intel | -11 -10 -10 ------- Run | Yrd Mat Sub Active Infowar (turns) . | . . . Robot Analysis Total 2 | . 2 . Derelict Logs Recovered 1 | . . 1 Drone Launches . | . . . Drone Recoveries . | . . . Exploration | -11 -10 -10 ------------- Run | Yrd Mat Sub Turns Passed 2119 | 2 244 1873 Spaces Moved 1461 | 1 200 1260 Core . | . . . Treads 449 | . . 449 Legs 1012 | 1 200 811 Wheels . | . . . Hover . | . . . Flight . | . . . Fastest Speed 120 | 120 120 120 Average Speed 132 | 120 120 134 Slowest Speed 160 | 120 120 160 Overloaded Moves . | . . . Propulsion Burnouts . | . . . Robots Hopped . | . . . Potential Cave-ins . | . . . Cave-ins Triggered . | . . . Exploration Rate (%) 32 | 2 33 61 Regions Visited 2 Branch Regions 1 Pre-discovered Areas 2 | . . 2 Known Exits Taken . | . . . Unknown Exits Taken 2 | 1 1 . Scrap Searched 2 | . . 2 Spaces Dug . | . . . Terrain Destroyed 1 | . . 1 Melee . | . . . Projectile 1 | . . 1 AOE . | . . . Terrain Rammed . | . . . Walls Destroyed . | . . . Machines Disabled . | . . . Actions | -11 -10 -10 --------- Run | Yrd Mat Sub Total 1560 | 1 203 1356 Wait 33 | . . 33 Move 1459 | . 199 1260 Hop . | . . . Pick Up 9 | . 2 7 Fast Attach 1 | . 1 . Attach 6 | . . 6 Detach . | . . . Swap 3 | 1 . 2 Drop 4 | . . 4 Fire 44 | . . 44 Melee . | . . . Ram . | . . . Kick 1 | . 1 . Crush . | . . . Escape Stasis . | . . . Rewire . | . . . Trap . | . . . Miscellaneous . | . . . Route ------- -11/Scrapyard -10/Materials (discovered 2 exits: [*Min] / *Sub) -10/Subcaves (discovered 1 exit: [*Scr]) History --------- Turn | Location | Event 3 | -11/Scrapyard | Discovered new exit (range 0) 3 | -11/Scrapyard | Entered Materials 4 | -10/Materials | Met a group of wandering Federalists 155 | -10/Materials | Discovered new exit (range 10) 233 | -10/Materials | Discovered new exit (range 13) 247 | -10/Materials | Entered Subcaves 248 | -10/Subcaves | Continued accompanying wandering Federalists (5) 271 | -10/Subcaves | A swath of the cavern ceiling suddenly collapsed 304 | -10/Subcaves | Build established: Mutant 878 | -10/Subcaves | Disturbed a concealed Subdweller 952 | -10/Subcaves | Learned location of Zion (-7) 952 | -10/Subcaves | Met a Zionite searching for "candidates" 1144 | -10/Subcaves | Learned location of Storage (-9) 1155 | -10/Subcaves | Shifting Twisted Machinery released Sub. Monowheel 1321 | -10/Subcaves | Core integrity fell below 50% 1367 | -10/Subcaves | Lost 4 parts (1p1n1u1w) 1627 | -10/Subcaves | A swath of the cavern ceiling suddenly collapsed 1696 | -10/Subcaves | Core integrity fell below 20% 2120 | -10/Subcaves | Destroyed by Piercing Trap Last Messages --------------- 01696_ X6-8S0(R) Sub. Monowheel blasted off. 01699_ X6-8S0(R) Sub. Laser blasted off. 01699_ X6-8S0(R) destroyed. 01700_ Aluminum Leg destroyed. 01705_ WW-PSA(R) knocked back. 01706_ WW-PSA(R) affixes Scrap Shield Fragment to Scrap Shield. 01708_ WW-PSA(R) knocked back. 01714_ WW-PSA(R) destroyed. 01717_ Acquired 31 matter. 01720_ Acquired Sub. Laser. 01725_ Acquired 14 matter. 01727_ Acquired 2 matter. 01776_ YC-82Z(u) builds Twisted Machinery. 01947_ Subatomizers dissect the Disposable Heat Sink. 01951_ Acquired 22 matter. 01957_ Subatomizers dissect the Disposable Heat Sink. 01990_ Subatomizers dissect the Disposable Heat Sink, destroying it. 02120_ Triggered Piercing Trap. 02120_ Spikes shoot up from the floor. 02120_ Critical hit (Impale). Map ----- +----------------------------------------------------+ | ######## #???????????????####???????? | | ####" ## ##?????????????### #####???? | | ##""#" ##?????????????## #???? | | #"" ## ##??????????????# #???? | | #### ## #######???????????????# ##### | | ###?##########????????????????????## | | ""#??????????????????????????????## " | | " #??????????????????????????????# ## " | | ##??????????????????????????????# #?# ###" | | #???????????????????????????????# #### #?#" | | #???????????????????????????????# ## ### | | ##???????????????????????????????# " | | #???????????????????????????????# | | ##???????????????????????????????# #### | | ?????????????????????????????????## ##?## | | ??????????????????????????????????## ##?# | | ???????????????????????????????????### #?# | | ?????????????????????????????????????## ## #?# | | ??????????????????????#< ?##??????????###### ### | | ?????????????????????##<<<<#?????????????## | | ?????????????????????#<<<<<#?????????????# | | ?????????????????????+< < #????????????# # | | #????????????????????# <<<#??????????# # | | ####??????????????????#<< #??????????# ## | | ##?###????????????##<<<<#??????????### ##? | | ## #???????###### @<#????????????## ####?? | | #????????# # <<##?????????????###?????? | | ##????????## <#??????????????????????? | | ##?????????#< ## ##??????????????????????? | | ##????????###< "#######?????????????????????? | | ##?????#???# " ### #?????????????????????? | | #####?## ####??????????????????? | | # #?# ########### #??????????????????? | | ##?# ??????## #??????????????????? | | #?## ??????## ###??????????????????? | | ## # ##??# ??????# #????????????????????? | | ?### #?### ??????## #????????????????????? | | ???# ## ## ###???# #????????????????????? | | ??## ## ##### ##???????????????????? | | ### #?# ##### #???????????????????# | | ##???# #### ##################??# | | ####????# ## # # ## ## # ##?# | | ##??????## ### | | #??????## # | | " #####?## ### ## ### # | | " #?# #?## ########?#### | | " ## ### ##?### ##???????????# | | "" ### > ##??## ##???????????# | | " " ?## #???## ###?????????# | | =""" ??## ###????## ##??????#### | +----------------------------------------------------+ Best States ------------- Heat Dissipation 25 Energy Generation 10 Energy Capacity 250 Matter Stores 300 Matter Capacity 300 Sight Range 16 Terrain Scan Density 10 Armor Coverage 150 Evasion (%) 55 Recoil Reduction 2 Item Schematics ----------------- None Robot Schematics ------------------ None Fabricated ------------ Nothing Repaired ---------- Nothing Alien Tech Used ----------------- None Achievements -------------- None Challenges ------------ None Game ------ Seed BraceBombardmentGenerator Manual? 0 Play Time 00:12:44 Cumulative 399.6 hours Start 2025.07.21 @ 18:05:38 End 2025.07.21 @ 18:12:37 Sessions 1 Manual Loads 0 Difficulty Rogue Special Mode None Game No. 495 Rogue 495 Adventurer 0 Explorer 0 Win Type - Total 31 Types 15/1/9/1/1/1/0/1/1/1 Lore% 87 Gallery% 80 Achievement% 77 Wizard Run 0 Options --------- Layout 0 ASCII 0 Keyboard 0 Movement Numpad Keybinds 0 Fullscreen 1 Font 18/SmallcapsGlow Map View 76x50 Zoom Use 0% Tactical HUD 1 Map Filters NONE Filters NONE Steam 1 RUN: 978ecc7e-1fff-42eb-a55a-b9c6afbf39e5